Cogmind - Beta 14 @@@ ROGUE MODE // 2025.01.12 @ 19:26:29 Player: muesli Result: Destroyed by YI-UF0 with YI-UF0's Doublenader Performance ------------- Evolutions (1) 500 Regions Visited (3) 600 Robots Destroyed (14) 70 Value Destroyed (477) 477 Prototype IDs (0) 0 Alien Tech Used (0) 0 Bonus (0) 0 TOTAL SCORE: 1647 Bonus ------- None Cogmind --------- Core Integrity 0/400 Matter 300/300 Energy 99/100 System Corruption 0% Temperature Cool (0) Movement Core (50) Location -9/Mines Parts ------- > --- POWER (1) -------- (None) > --- PROPULSION (3) --- (None) > --- UTILITY (3) ------ (None) > --- WEAPON (2) ------- (None) > --- INVENTORY (5) ---- Ion Engine Ion Engine Aluminum Leg Autogun Autogun Peak State ------------ > --- POWER ------------ Ion Engine > --- PROPULSION ------- Aluminum Leg Aluminum Leg > --- UTILITY ---------- Heat Sink Hacking Suite > --- WEAPON ----------- Autogun Autogun > --- INVENTORY -------- Ion Engine Autogun Autogun [Rating: 11] Favorites ----------- Power Ion Engine Engine Ion Engine Propulsion Aluminum Leg Leg Aluminum Leg Utility Heat Sink Device Heat Sink Hackware Hacking Suite Weapon Autogun Ballistic Gun Autogun Launcher Rocket Launcher Build | -11 -10 -9 -9 ------- Run | Yrd Mat Mat Min Slots Evolved 2 | . . 2 . Power . | . . . . Propulsion 1 | . . 1 . Utility 1 | . . 1 . Weapon . | . . . . Parts Attached 13 | 5 6 2 . Power 3 | 1 2 . . Engine 3 | 1 2 . . Core . | . . . . Reactor . | . . . . Propulsion 2 | 2 . . . Treads . | . . . . Leg 2 | 2 . . . Wheel . | . . . . Hover . | . . . . Flight . | . . . . Utility 2 | . 2 . . Device 1 | . 1 . . Storage . | . . . . Processor . | . . . . Hackware 1 | . 1 . . Protection . | . . . . Artifact . | . . . . Weapon 6 | 2 2 2 . Energy Gun . | . . . . Energy Cannon . | . . . . Ballistic Gun 5 | 2 2 1 . Ballistic Cannon . | . . . . Launcher 1 | . . 1 . Special Weapon . | . . . . Impact Weapon . | . . . . Slashing Weapon . | . . . . Piercing Weapon . | . . . . Special Melee Weapon . | . . . . Unidentified Prototypes . | . . . . Parts Lost 8 | . 1 . 7 Power 2 | . 1 . 1 Propulsion 2 | . . . 2 Utility 2 | . . . 2 Weapon 2 | . . . 2 Highest Loss Streak 7 | . 1 . 7 To Critical Strikes . | . . . . Average Slot Usage (%) 75 | . 85 77 60 Engine 11 | . 13 11 8 Leg 23 | . 28 22 17 Device 8 | . 8 11 8 Hackware 8 | . 6 11 9 Ballistic Gun 18 | . 28 12 8 Launcher 4 | . . 9 8 Peak Build Rating 11 | 5 11 11 11 Average Rating 8 | 3 8 11 8 On Entrance 6 | . 5 11 11 Naked Turns 56 | . . . 56 Heaviest Build 13 | 7 12 13 13 Greatest Support 20 | 20 20 20 20 Greatest Overweight (x) . | . . . . Average Overweight (x) . | . . . . Largest Inventory Capacity 5 | 5 5 5 5 Average Capacity 5 | 5 5 5 5 Most Carried 5 | 2 5 5 5 Average Carried 3 | 1 3 4 5 Final Capacity 5 | 5 5 5 5 Final Carried 5 | 2 5 5 5 Class Distribution -------------------- 100% | Mutant Dominant Class ---------------- Mutant | -10/Materials Mutant | -9/Materials Mutant | -9/Mines Resources | -11 -10 -9 -9 ----------- Run | Yrd Mat Mat Min Matter Collected 510 | 169 228 97 16 Remotely . | . . . . Salvage Created 520 | . 363 157 . Parts 34 | . 20 14 . Haulers Intercepted . | . . . . Recyclers Shooed . | . . . . Parts Field Recycled . | . . . . Retrieved Matter . | . . . . Parts Self-Destructed . | . . . . Prevented . | . . . . Kills | -11 -10 -9 -9 ------- Run | Yrd Mat Mat Min Combat Hostiles Destroyed 11 | . 8 3 . Guns 10 | . 7 3 . AOE 1 | . 1 . . Classes Destroyed 4 | . 3 1 . Worker 1 | . 1 . . Operator 2 | . 1 1 . Grunt 10 | . 8 2 . Sentry 1 | . . 1 . Best Kill Streak 3 | . 3 3 . Combat Bots Only 3 | . 3 3 . Max Kills in Single Turn 2 | . 2 1 . Gunslinging . | . . . . Exploded 1 | . 1 . . Melee . | . . . . Uniques/NPCs Destroyed . | . . . . Combat | -11 -10 -9 -9 -------- Run | Yrd Mat Mat Min Hostile Shots Fired 67 | . 33 14 20 Missed 18 | . 11 2 5 Damage Taken 1078 | . 288 169 621 Core 468 | . 54 10 404 Absorbed by Shields . | . . . . Core Remaining (%) 89 | 100 78 . . Volleys Fired 43 | . 21 13 9 Largest 2 | . 2 1 1 Hottest 46 | . 46 23 23 Shots Fired 64 | . 42 13 9 Gun 64 | . 42 13 9 Cannon . | . . . . Launcher . | . . . . Special . | . . . . Kinetic 64 | . 42 13 9 Thermal . | . . . . Explosive . | . . . . Electromagnetic . | . . . . Robot Hit Streak 20 | . 20 6 5 Robot Miss Streak 2 | . 2 1 2 Penetration Max . | . . . . Secondary Targets 2 | . 2 . . Max Gunslinging Chain 1 | . 1 . . Shots Hit Robots 47 | . 30 11 6 Core Hits 23 | . 15 7 1 Critical Kills . | . . . . Critical Parts Destroyed 1 | . 1 . . Critical Strikes 1 | . 1 . . Destroy 1 | . 1 . . Melee Attacks . | . . . . Impact . | . . . . Slashing . | . . . . Piercing . | . . . . Sneak Attacks . | . . . . Combat Hostiles . | . . . . Follow-up Attacks . | . . . . Damage Inflicted 840 | . 590 166 84 Guns 625 | . 375 166 84 Cannons . | . . . . Explosions 215 | . 215 . . Melee . | . . . . Ramming . | . . . . Kinetic 625 | . 375 166 84 Thermal 215 | . 215 . . Explosive . | . . . . Electromagnetic . | . . . . Impact . | . . . . Slashing . | . . . . Piercing . | . . . . Highest Corruption . | . . . . Average Corruption . | . . . . Corruption Purged . | . . . . Corruption Blocked . | . . . . Overload Shots . | . . . . Overflow Damage . | . . . . Projectiles . | . . . . Explosions . | . . . . Melee . | . . . . Knockbacks . | . . . . Impact . | . . . . Kinetic . | . . . . Secondary . | . . . . Self-Inflicted Damage . | . . . . Shots . | . . . . Rammed . | . . . . Targets Rammed . | . . . . Kicked . | . . . . Crushed . | . . . . Highest Temperature 31 | . 31 . . Average Temperature 11 | . 11 . . Received Heat Transfer 243 | . 156 87 . Siege Activations . | . . . . Robots Corrupted . | . . . . Combat Hostiles . | . . . . Parts Fried . | . . . . Impact Corruptions . | . . . . Robots Melted . | . . . . Combat Hostiles . | . . . . Parts Melted . | . . . . Heat Transferred 150 | . 150 . . Parts Sabotaged . | . . . . Parts Stolen . | . . . . Parts Stripped . | . . . . Power Chain Reactions . | . . . . Alert | -11 -10 -9 -9 ------- Run | Yrd Mat Mat Min Peak Influence 299 | . 299 141 64 Initial 54 | . . 41 54 Average 73 | . 95 96 44 Maximum Alert Level 1 | . 1 . . Low Security (%) 98 | 100 97 100 100 Level 1 1 | . 2 . . Level 2 . | . . . . Level 3 . | . . . . Level 4 . | . . . . Level 5 . | . . . . High Security . | . . . . Max Security . | . . . . Squads Dispatched 4 | . 3 1 . Investigation 2 | . 2 . . Extermination . | . . . . Reinforcement 2 | . 1 1 . Assault . | . . . . Garrison . | . . . . Intercept . | . . . . Searches Triggered . | . . . . Construction Impeded . | . . . . Haulers Reinforced . | . . . . Active Scanning Responses . | . . . . Cargo Convoy Interrupts . | . . . . Stealth | -11 -10 -9 -9 --------- Run | Yrd Mat Mat Min Distress Signals 1 | . 1 . . Communications Jammed . | . . . . Distress Signals . | . . . . Times Spotted 19 | . 12 6 1 Peak Tracking Total 4 | . 4 3 1 Tactical Retreats 1 | . . . 1 Traps | -11 -10 -9 -9 ------- Run | Yrd Mat Mat Min Traps Triggered 1 | . 1 . . Indirectly . | . . . . Trap Hack Attempts . | . . . . Triggered . | . . . . Disarmed . | . . . . Reprogrammed . | . . . . Reused . | . . . . Traps Extracted . | . . . . Installed . | . . . . Triggered 1 | . . . 1 Machines | -11 -10 -9 -9 ---------- Run | Yrd Mat Mat Min Machines Disabled 2 | . 2 . . Max in Single Turn 2 | . 2 . . Machines Repaired . | . . . . Machines Dismantled . | . . . . Machines Sabotaged . | . . . . Overloaded Fab Kills . | . . . . Hacking | -11 -10 -9 -9 --------- Run | Yrd Mat Mat Min Machines Accessed 3 | . 2 1 . Terminals 3 | . 2 1 . Fabricators . | . . . . Repair Stations . | . . . . Recycling Units . | . . . . Scanalyzers . | . . . . Garrison Access . | . . . . Total Hacks 7 | . 6 1 . Successful 5 | . 4 1 . Failed 2 | . 2 . . Catastrophic 1 | . 1 . . Database Lockouts . | . . . . Manual . | . . . . Terminals 7 | . 6 1 . Fabricators . | . . . . Repair Stations . | . . . . Recycling Units . | . . . . Scanalyzers . | . . . . Garrison Access . | . . . . Terminal Hacks 5 | . 4 1 . Alert Level 2 | . 1 1 . Locate Traps 1 | . 1 . . Security Status 1 | . 1 . . Hauler Manifests 1 | . 1 . . Fabricator Hacks . | . . . . Repair Station Hacks . | . . . . Recycling Unit Hacks . | . . . . Scanalyzer . | . . . . Garrison Access Hacks . | . . . . Unauthorized Hacks . | . . . . Terminals . | . . . . Fabricators . | . . . . Repair Stations . | . . . . Recycling Units . | . . . . Scanalyzers . | . . . . Garrison Access . | . . . . Data Cores Recovered 1 | . 1 . . Used 1 | . 1 . . Hacking Detections 2 | . 2 . . Full Trace Events 2 | . 2 . . Feedback Events . | . . . . Feedback Blocked . | . . . . Robot Schematics Acquired . | . . . . Robots Built . | . . . . Authchips . | . . . . Time . | . . . . Total Robot Build Rating . | . . . . Part Schematics Acquired . | . . . . Parts Built . | . . . . Authchips . | . . . . Time . | . . . . Total Part Build Rating . | . . . . Parts Repaired . | . . . . Time . | . . . . Parts Recycled . | . . . . Recycled Matter . | . . . . Retrieved Matter . | . . . . Retrieved Components . | . . . . Parts Scanalyzed . | . . . . Part Schematics Acquired . | . . . . Parts Damaged . | . . . . Bothacking | -11 -10 -9 -9 ------------ Run | Yrd Mat Mat Min Used RIF Installer . | . . . . Robots Hacked . | . . . . Non-combat . | . . . . Combat . | . . . . Robot Hacks Applied . | . . . . Relay Couplers Released . | . . . . Fabnet Peak Effective % . | . . . . Robots Rewired . | . . . . Allies Hacked . | . . . . Hacks Repelled . | . . . . Allies | -11 -10 -9 -9 -------- Run | Yrd Mat Mat Min Total Allies 3 | . . . 3 Largest Group 3 | . . . 3 Highest-Rated Group 40 | . . . 40 Highest-Rated Ally 16 | . . . 16 Total Orders . | . . . . Ally Attacks 1 | . . . 1 Total Damage 16 | . . . 16 Kills . | . . . . Allies Corrupted . | . . . . Allies Melted . | . . . . Intel | -11 -10 -9 -9 ------- Run | Yrd Mat Mat Min Robot Analysis Total . | . . . . Derelict Logs Recovered 1 | . . . 1 Drone Launches . | . . . . Drone Recoveries . | . . . . Exploration | -11 -10 -9 -9 ------------- Run | Yrd Mat Mat Min Turns Passed 946 | 62 422 170 292 Spaces Moved 716 | 47 272 115 282 Core 117 | 4 . . 113 Treads . | . . . . Legs 599 | 43 272 115 169 Wheels . | . . . . Hover . | . . . . Flight . | . . . . Fastest Speed 50 | 50 120 120 50 Average Speed 108 | 114 120 120 91 Slowest Speed 120 | 120 120 120 120 Overloaded Moves . | . . . . Propulsion Burnouts . | . . . . Robots Hopped . | . . . . Cave-ins Triggered . | . . . . Exploration Rate (%) 27 | 4 50 16 41 Regions Visited 3 Branch Regions 1 Pre-discovered Areas 1 | . . . 1 Known Exits Taken . | . . . . Unknown Exits Taken 3 | 1 1 1 . Scrap Searched . | . . . . Spaces Dug . | . . . . Terrain Destroyed 48 | . 48 . . Melee . | . . . . Projectile . | . . . . AOE 48 | . 48 . . Terrain Rammed . | . . . . Walls Destroyed . | . . . . Machines Disabled . | . . . . Actions | -11 -10 -9 -9 --------- Run | Yrd Mat Mat Min Total 828 | 53 332 136 307 Wait 49 | . 28 5 16 Move 713 | 46 271 114 282 Hop . | . . . . Pick Up 6 | 2 3 1 . Fast Attach 8 | 5 3 . . Attach . | . . . . Detach . | . . . . Swap 5 | . 3 2 . Drop 4 | . 3 1 . Fire 43 | . 21 13 9 Melee . | . . . . Ram . | . . . . Kick . | . . . . Crush . | . . . . Escape Stasis . | . . . . Rewire . | . . . . Trap . | . . . . Miscellaneous . | . . . . Route ------- -11/Scrapyard -10/Materials (discovered 2 exits: *Mat x2) -9/Materials (discovered 2 exits: [*Min x2]) -9/Mines (discovered 2 exits: [*Mat x2]) History --------- Turn | Location | Event 21 | -11/Scrapyard | Discovered new exit (range 16) 63 | -11/Scrapyard | Entered Materials 301 | -10/Materials | Build established: Mutant 347 | -10/Materials | Discovered new exit (range 8) 454 | -10/Materials | Discovered new exit (range 13) 485 | -10/Materials | Entered another Materials area 485 | -9/Materials | Evolved 2 slots: Propulsion x1, Utility x1 542 | -9/Materials | Discovered new exit (range 11) 623 | -9/Materials | Discovered new exit (range 13) 655 | -9/Materials | Entered Mines 741 | -9/Mines | Discovered new exit (range 13) 747 | -9/Mines | Learned location of Storage (-8) 778 | -9/Mines | Assisted by bots powering up and referring to "LRC-V3" 839 | -9/Mines | Discovered new exit (range 5) 892 | -9/Mines | Core integrity fell below 50% 896 | -9/Mines | Core integrity fell below 20% 903 | -9/Mines | Lost 3 allies 922 | -9/Mines | Lost 7 parts (1p2n2u2w) 947 | -9/Mines | Destroyed by YI-UF0 with YI-UF0's Doublenader Last Messages --------------- The unstable cave ceiling collapses. YI-UF0 mumbles something. Aluminum Leg destroyed. The unstable cave ceiling collapses. Ion Engine destroyed. Aluminum Leg destroyed. Autogun destroyed. U-05 Engineer lays Concrete. U-05 Engineer builds a Wall. Hacking Suite destroyed. U-05 Engineer builds a Wall. The unstable cave ceiling collapses. YI-UF0 mumbles something. The unstable cave ceiling collapses. U-05 Engineer lays Concrete. The unstable cave ceiling collapses. YI-UF0 mumbles something. Acquired 16 matter. The unstable cave ceiling collapses. R-06 Scavenger destroyed. Map ----- +----------------------------------------------------+ | # #??????????????????????????????????????????????? | | # #??????????????????????????????????????????????? | | # ##?????????????????????????????????????????????? | | #?????????????????????????????????????????????? | | #???????????????#####?????????????????????????? | | # #???????????????# #?????????????????????????? | | # #???????????????# #?????????????????????????? | | # #?????????????### ###???????????????????????? | | # #?????????????# #???????????????????????? | | # ####??????###?# #???????????????????????? | | ##????# ### #???????????????????????? | | #???# ## < #???????????????????????? | | ## ##?# ## #???????????????????????? | | ### ## #?# #???????????????????????? | | ??# #???##### ###?????###???????????????? | | ??# ###???????# #??????? #???????????????? | | ??## ##?????????# #???????# #???????????????? | | ??## ##????????## #???????# #???????????????? | | ??# ##???????# *#???????# #???????????????? | | ??# #???????# =#???????# ########????????? | | ??## #??????## % #####??# ##???????? | | ???## #??????# | # #### ##### #???????? | | ????## """ ##???### ### # # #???????? | | ?????# """ ### # % ##%# ## #???????? | | ?????# """ %## ### ##??????? | | ?????## @ ## ####?# ####???? | | ??????## ### # ##### % ### ##??? | | ???????#### # ## ?# #?#### # #### ##?? | | ??????????????? ## ## #?# # # ##?## ##? | | ?????????????? #?# # # ##??## #? | | ????????????? ## #?# # ## ^##???## #? | | ????????????? #?#### #?????# #? | | ?????????????! ##??#### ###?????# #? | | ????????????? #?????# #???????## ##? | | ???????????????# #?????# #????????####?? | | ?????????????????## ####??# #?????????????? | | ?????????????????## #### #?????????????? | | ????????????????## #?????????????? | | ????????????????## #### #?????????????? | | ????????????????# #?# #?????????????? | | ????????????????# #?# ##?????????????? | | ????????????????# #?# #????#?????????? | | ???????????????# ### ### ###???????? | | ??????????????# ## < #???????? | | ??????????????# #### #?????? | | ??????????????# #??# ## #????? | | ??????????????# # ##??## ##?? #????? | | ??????????????## ######????####????######????? | | ???????????????#######???????????????????????????? | | ?????????????????????????????????????????????????? | +----------------------------------------------------+ Best States ------------- Heat Dissipation 38 Energy Generation 10 Energy Capacity 250 Matter Stores 300 Matter Capacity 300 Sight Range 16 Terrain Scan Density 10 Evasion (%) 55 Offensive Hacking 10 Item Schematics ----------------- None Robot Schematics ------------------ None Fabricated ------------ Nothing Alien Tech Used ----------------- None Achievements -------------- None Challenges ------------ None Game ------ Seed NuclearGaussTelecube Manual? 0 Play Time 00:13:35 Cumulative 6.0 hours Start 2025.01.12 @ 19:14:36 End 2025.01.12 @ 19:26:29 Sessions 1 Manual Loads 0 Difficulty Rogue Special Mode None Game No. 9 Rogue 6 Adventurer 3 Explorer 0 Win Type - Total 0 Types 0/0/0/0/0/0/0/0/0 Lore% 3 Gallery% 10 Achievement% 12 Wizard Run 0 Options --------- Layout 0 ASCII 1 Keyboard 1 Movement Arrows Keybinds 0 Fullscreen 2 Font 24/Smallcaps Map View 76x50 Zoom Use 0% Tactical HUD 0 Map Filters NONE Filters NONE Steam 1 RUN: 3a6bcf73-c552-47c3-a6b4-a96b2a041ce0